bitfinex-derivatives/quotes_BTCF0:USTF0_20240905
["timestamp","ask_amount","ask_price","bid_price","bid_amount"]
[1725498353235,0.3186735,58108.0,58107.0,0.170236]
[1725498353430,0.3186735,58108.0,58107.0,0.171236]
[1725498355040,0.3186735,58108.0,58107.0,0.061236]
[1725498355240,0.3186735,58108.0,58107.0,0.171236]
[1725498356044,0.3086735,58108.0,58107.0,0.171236]
[1725498358535,0.4149434,58108.0,58107.0,0.171236]
[1725498359330,0.5349434,58108.0,58107.0,0.171236]
[1725498359932,0.5349434,58108.0,58107.0,0.532036]
[1725498362545,0.5349434,58108.0,58101.0,0.3608]
[1725498362853,0.12,58108.0,58107.0,0.11]
[1725498363040,0.22626338,58108.0,58107.0,0.11]
[1725498363239,0.53493688,58108.0,58107.0,0.11]
[1725498363634,0.53493688,58108.0,58107.0,0.111]
[1725498363834,0.53493688,58108.0,58107.0,0.171236]
[1725498365040,0.53493688,58108.0,58107.0,0.001]
[1725498365252,0.53493688,58108.0,58107.0,0.111]
[1725498365452,0.96353688,58108.0,58107.0,0.111]
[1725498365754,0.8572735,58108.0,58107.0,0.111]
[1725498375647,0.8572735,58108.0,58107.0,0.001]
[1725498375854,0.8572735,58108.0,58091.0,0.32945838]
[1725498375855,0.3046735,58097.0,58091.0,0.32945838]
[1725498376055,0.3046735,58097.0,58091.0,0.32545838]
[1725498376056,0.3046735,58092.0,58091.0,0.32545838]
[1725498376448,0.41093688,58092.0,58091.0,0.32545838]
[1725498376857,0.3046735,58092.0,58091.0,0.32545838]
[1725498377246,0.41093688,58092.0,58091.0,0.32945838]
[1725498377443,0.41093688,58092.0,58091.0,0.43945838]
[1725498377649,0.3046735,58092.0,58091.0,0.49971138]
[1725498378157,0.3046735,58092.0,58091.0,0.49571138]
[1725498378753,0.41093688,58092.0,58091.0,0.49571138]
[1725498378951,0.3046735,58092.0,58091.0,0.49571138]
[1725498379458,0.41093688,58092.0,58091.0,0.49571138]
[1725498379653,0.3046735,58092.0,58091.0,0.49571138]
[1725498381161,0.3046735,58092.0,58091.0,0.17051138]
[1725498383260,0.3608,58095.0,58093.0,0.06025]
[1725498383564,0.3046735,58094.0,58093.0,0.06025]
[1725498384160,0.3046735,58094.0,58093.0,0.17025]
[1725498389352,0.3046735,58094.0,58091.0,0.00025838]
[1725498389664,0.3046735,58092.0,58091.0,0.00025838]
[1725498389859,0.4146735,58092.0,58091.0,0.00025838]
[1725498390963,0.4146735,58092.0,58091.0,0.11025838]
[1725498397371,0.3046735,58092.0,58091.0,0.11025838]
[1725498398262,0.3046735,58092.0,58091.0,0.17051138]
[1725498398764,0.3046735,58092.0,58091.0,0.53131138]
[1725498402072,0.00025816,58100.0,58093.0,0.06025]
[1725498402274,0.13025816,58100.0,58099.0,0.11]
[1725498402660,0.43493166,58100.0,58099.0,0.11]
[1725498403373,0.43493166,58100.0,58099.0,0.111]
[1725498411667,0.43493166,58100.0,58099.0,0.171245]
[1725498412964,0.43493166,58100.0,58099.0,0.20159334]
[1725498416790,0.43493166,58100.0,58099.0,0.56239334]
[1725498417481,0.13025816,58100.0,58099.0,0.56239334]
[1725498425188,0.004,58110.0,58106.0,0.060237]
[1725498425379,0.4466,58111.0,58106.0,0.3608]
[1725498425582,0.4566,58111.0,58110.0,0.060233]
[1725498425988,0.7612735,58111.0,58110.0,0.060233]
[1725498426291,0.3146735,58111.0,58110.0,0.060233]
[1725498427572,0.3146735,58111.0,58110.0,0.061233]
[1725498430182,0.3146735,58111.0,58110.0,0.09172514]
[1725498432801,0.3046735,58111.0,58110.0,0.09172514]
[1725498434478,0.3046735,58111.0,58110.0,0.09072514]
[1725498434684,0.3046735,58111.0,58110.0,0.09172514]
[1725498434888,0.3046735,58111.0,58110.0,0.20172514]
[1725498439590,0.00016587,58116.0,58115.0,0.060228]
[1725498439895,0.30483937,58116.0,58115.0,0.531028]
[1725498440790,0.30483937,58116.0,58115.0,0.532028]
[1725498441993,0.004,58123.0,58115.0,0.4718]
[1725498442196,0.4438,58126.0,58125.0,0.060218]
[1725498442492,0.4698,58126.0,58125.0,0.170218]
[1725498443386,0.4698,58126.0,58125.0,0.171218]
[1725498444583,0.4698,58126.0,58125.0,0.20190414]
[1725498449904,0.4698,58126.0,58125.0,0.20090414]
[1725498450102,0.4698,58126.0,58125.0,0.20190414]
[1725498450502,0.4698,58126.0,58125.0,0.20090414]
[1725498450705,0.4698,58126.0,58125.0,0.20190414]
[1725498453717,0.4698,58126.0,58124.0,0.11]
[1725498453899,0.4698,58126.0,58125.0,0.001]
[1725498454297,0.98592,58126.0,58125.0,0.001]
[1725498454708,1.34672,58126.0,58125.0,0.001]
[1725498455208,1.94672,58126.0,58125.0,0.001]
[1725498455910,1.94672,58126.0,58124.0,0.11]
[1725498456111,0.51612,58125.0,58124.0,0.111]
[1725498456316,0.62612,58125.0,58124.0,0.111]
[1725498456610,0.62612,58125.0,58124.0,0.11]
[1725498457014,0.11,58125.0,58124.0,0.11]
[1725498457205,0.11,58125.0,58124.0,0.111]
[1725498462713,0.21628207,58125.0,58124.0,0.111]
[1725498462916,0.57708207,58125.0,58124.0,0.111]
[1725498463113,0.4708,58125.0,58124.0,0.111]
[1725498470523,0.4708,58125.0,58124.0,0.001]
[1725498473020,0.4708,58125.0,58124.0,0.111]
[1725498478929,0.4708,58125.0,58124.0,0.171219]
[1725498479623,0.5808,58125.0,58124.0,0.001]
[1725498482730,0.5808,58125.0,58122.0,0.04092606]
[1725498483634,0.4708,58125.0,58123.0,0.11]
[1725498484532,0.4708,58125.0,58123.0,0.170219]
[1725498485834,0.10628207,58124.0,58123.0,0.170219]
[1725498486028,0.21628207,58124.0,58123.0,0.170219]
[1725498486429,0.21628207,58124.0,58123.0,0.171219]
[1725498486939,0.57708207,58124.0,58123.0,0.171219]
[1725498487140,0.57808207,58124.0,58123.0,0.171219]
[1725498487538,0.21728207,58124.0,58123.0,0.171219]
[1725498487838,0.57808207,58124.0,58123.0,0.171219]
[1725498489841,0.21728207,58124.0,58123.0,0.171219]
[1725498491029,0.21728207,58124.0,58123.0,0.15409711]
[1725498492943,0.111,58124.0,58123.0,0.15409711]
[1725498493541,0.11,58124.0,58123.0,0.15309711]
[1725498493842,0.11,58124.0,58123.0,0.15409711]
[1725498496441,0.11,58124.0,58123.0,0.21431711]
[1725498497136,0.11,58124.0,58123.0,0.15409711]
[1725498500241,0.11,58124.0,58123.0,0.15309711]
[1725498500442,0.11,58124.0,58123.0,0.15409711]
[1725498500848,0.21628207,58124.0,58123.0,0.15409711]
[1725498501648,0.11,58124.0,58123.0,0.15409711]
[1725498502944,0.11,58124.0,58118.0,0.21238465]
[1725498503152,0.11,58124.0,58123.0,0.17022]
[1725498503344,0.21622914,58124.0,58123.0,0.17022]
[1725498507964,0.11,58124.0,58123.0,0.17022]
[1725498512664,0.111,58124.0,58123.0,0.17122]
[1725498515959,0.21622914,58124.0,58123.0,0.17022]
[1725498516160,0.21722914,58124.0,58123.0,0.17122]
[1725498517655,0.21722914,58124.0,58123.0,0.10886769]
[1725498520458,0.21722914,58124.0,58123.0,0.17122]
[1725498520651,0.57802914,58124.0,58123.0,0.17122]
[1725498523063,0.4718,58124.0,58123.0,0.17122]
[1725498523457,0.111,58124.0,58123.0,0.17122]
[1725498525557,0.111,58124.0,58123.0,0.1738727]
[1725498531073,0.21722914,58124.0,58123.0,0.1738727]
[1725498536070,0.21622914,58124.0,58123.0,0.1728727]
[1725498536270,0.21722914,58124.0,58123.0,0.1738727]
[1725498538167,0.111,58124.0,58123.0,0.1738727]
[1725498540875,0.221,58124.0,58123.0,0.0036527]
[1725498543078,0.111,58124.0,58123.0,0.0036527]
[1725498545478,0.4718,58124.0,58123.0,0.0036527]
[1725498546782,0.50296704,58124.0,58123.0,0.0036527]
[1725498549491,0.50296704,58124.0,58123.0,0.0136527]
[1725498549787,0.14216704,58124.0,58123.0,0.0136527]
[1725498549984,0.50296704,58124.0,58123.0,0.0136527]
[1725498550886,0.14216704,58124.0,58123.0,0.0136527]
[1725498551089,0.50296704,58124.0,58123.0,0.0136527]
[1725498552480,0.14216704,58124.0,58123.0,0.0136527]
[1725498552990,0.50296704,58124.0,58123.0,0.0136527]
[1725498553687,0.60919618,58124.0,58123.0,0.0136527]
[1725498554588,0.24839618,58124.0,58123.0,0.0136527]
[1725498554788,0.60919618,58124.0,58123.0,0.0136527]
[1725498557682,0.60919618,58124.0,58123.0,0.011]
[1725498557994,0.60919618,58124.0,58123.0,0.11]
[1725498558192,0.57802914,58124.0,58123.0,0.11]
[1725498558395,0.57802914,58124.0,58123.0,0.17022]
[1725498558890,0.21722914,58124.0,58123.0,0.17022]
[1725498560998,0.111,58124.0,58123.0,0.17022]
[1725498563898,0.111,58124.0,58123.0,0.06022]
[1725498564099,0.111,58124.0,58123.0,0.17022]
[1725498571890,0.4718,58124.0,58123.0,0.17022]
[1725498572799,0.4718,58124.0,58123.0,0.06022]
[1725498572987,0.4718,58124.0,58123.0,0.17022]
[1725498575999,0.57802914,58124.0,58123.0,0.17022]
[1725498578208,0.21722914,58124.0,58123.0,0.17022]
[1725498580096,0.21722914,58124.0,58123.0,0.11]
[1725498581597,0.21722914,58124.0,58121.0,0.00051226]
[1725498581810,0.060221,58122.0,58121.0,0.00051226]
[1725498582113,0.27645014,58122.0,58121.0,0.00051226]
[1725498582413,1.39261014,58122.0,58121.0,0.00051226]
[1725498583113,1.286381,58122.0,58121.0,0.00051226]
[1725498583813,1.286381,58122.0,58121.0,0.00151226]
[1725498584201,1.286381,58122.0,58121.0,0.00051226]
[1725498584402,1.287381,58122.0,58121.0,0.00151226]
[1725498584710,0.687381,58122.0,58121.0,0.00151226]
[1725498584915,0.697381,58122.0,58121.0,0.00151226]
[1725498585302,0.63716,58122.0,58121.0,0.00151226]
[1725498585499,0.121,58122.0,58121.0,0.00151226]
[1725498591217,0.22722914,58122.0,58121.0,0.00151226]
[1725498595919,0.22722914,58122.0,58121.0,0.06173426]
[1725498598214,0.121,58122.0,58121.0,0.06173426]
[1725498606126,0.22722914,58122.0,58121.0,0.06173426]
[1725498607534,0.22722914,58122.0,58121.0,0.00151226]
[1725498609235,0.58802914,58122.0,58121.0,0.00151226]
[1725498613330,0.4818,58122.0,58121.0,0.00151226]
[1725498613628,0.121,58122.0,58121.0,0.00151226]
[1725498613928,0.4818,58122.0,58121.0,0.00151226]
[1725498614932,0.51309329,58122.0,58121.0,0.00151226]
[1725498615133,0.15229329,58122.0,58121.0,0.00151226]
[1725498615338,0.51309329,58122.0,58121.0,0.00151226]
[1725498615638,0.15229329,58122.0,58121.0,0.00151226]
[1725498616121,0.51309329,58122.0,58121.0,0.00151226]
[1725498616521,0.4818,58122.0,58121.0,0.00151226]
[1725498616726,0.4818,58122.0,58121.0,0.11151226]
[1725498617127,0.4818,58122.0,58121.0,0.00151226]
[1725498622432,0.8426,58122.0,58121.0,0.00151226]
[1725498626740,0.902821,58122.0,58121.0,0.00151226]
[1725498626937,0.902821,58122.0,58106.0,0.01902414]
[1725498626938,0.060227,58116.0,58106.0,0.01902414]
[1725498627139,0.59126,58113.0,58110.0,0.00320505]
[1725498627443,0.71126,58113.0,58110.0,0.00320505]
[1725498627639,1.8275,58113.0,58110.0,0.00320505]
[1725498627944,1.76727,58113.0,58110.0,0.00320505]
[1725498628539,1.76827,58113.0,58112.0,0.00437891]
[1725498628936,1.79925591,58113.0,58112.0,0.00437891]
[1725498629544,1.70325591,58113.0,58112.0,0.00437891]
[1725498629844,1.81325591,58113.0,58112.0,0.00437891]
[1725498637547,1.13191591,58113.0,58112.0,0.00437891]
[1725498641651,1.07168591,58113.0,58112.0,0.00437891]
[1725498642051,1.07168591,58113.0,58103.0,0.423538]
[1725498642252,0.3608,58104.0,58103.0,0.423538]
[1725498642459,0.4808,58104.0,58103.0,0.423538]
[1725498643257,0.4808,58104.0,58103.0,0.26200532]
[1725498643845,0.4808,58104.0,58103.0,0.26300532]
[1725498644355,0.4878,58104.0,58103.0,0.26300532]
[1725498644857,0.52746149,58104.0,58103.0,0.26300532]
[1725498645057,0.52746149,58104.0,58103.0,0.29336864]
[1725498645756,0.53646149,58104.0,58103.0,0.29336864]
[1725498646267,0.53646149,58104.0,58103.0,0.35360864]
[1725498648060,0.53646149,58104.0,58103.0,0.19207694]
[1725498650555,0.4968,58104.0,58103.0,0.19207694]
[1725498652163,0.136,58104.0,58103.0,0.19207694]
[1725498652463,0.4968,58104.0,58103.0,0.19207694]
[1725498653165,0.4968,58104.0,58103.0,0.06124]
[1725498654569,0.4968,58104.0,58103.0,0.001]
[1725498654570,0.58876385,58104.0,58103.0,0.001]
[1725498654757,0.06024,58103.0,58102.0,0.00644879]
[1725498654954,0.62534,58103.0,58102.0,0.00644879]
[1725498655158,1.74166,58103.0,58102.0,0.00644879]
[1725498655567,1.14166,58103.0,58102.0,0.00644879]
[1725498656163,1.14866,58103.0,58102.0,0.00644879]
[1725498657053,0.63234,58103.0,58102.0,0.00644879]
[1725498657568,0.63734,58103.0,58102.0,0.00744879]
[1725498657959,1.76066,58103.0,58102.0,0.00744879]
[1725498658562,1.76766,58103.0,58102.0,0.00744879]
[1725498659658,1.87766,58103.0,58102.0,0.00744879]
[1725498660170,2.66658061,58103.0,58102.0,0.00744879]
[1725498661657,2.84778151,58103.0,58102.0,0.00744879]
[1725498662254,2.8407009,58103.0,58102.0,0.00744879]
[1725498662459,0.576561,58102.0,58099.0,0.00848772]
[1725498662663,0.11,58100.0,58099.0,0.00848772]
[1725498662854,0.22,58100.0,58099.0,0.00848772]
[1725498663055,1.52207255,58100.0,58099.0,0.00848772]
[1725498663375,0.3608,58096.0,58089.0,0.01089074]
[1725498663563,0.3608,58096.0,58079.0,0.01906527]
[1725498663564,0.060258,58086.0,58079.0,0.01906527]
[1725498663762,0.060258,58086.0,58081.0,0.00917977]
[1725498663763,0.531062,58082.0,58081.0,0.00917977]
[1725498663959,0.81969896,58082.0,58081.0,0.00917977]
[1725498664270,2.12771714,58082.0,58081.0,0.00917977]
[1725498665158,2.14171714,58082.0,58081.0,0.00917977]
[1725498665359,2.15571714,58082.0,58081.0,0.00917977]
[1725498665771,2.51651714,58082.0,58081.0,0.00917977]
[1725498666971,2.51651714,58082.0,58081.0,0.00117977]
[1725498666972,1.78628018,58082.0,58081.0,0.00117977]
[1725498667176,2.53919971,58082.0,58081.0,0.00117977]
[1725498667356,1.93919971,58082.0,58081.0,0.00117977]
[1725498667675,1.75614547,58082.0,58081.0,0.00117977]
[1725498668960,1.23962547,58082.0,58081.0,0.00117977]
[1725498678072,1.17936347,58082.0,58081.0,0.00117977]
[1725498681085,0.90936347,58082.0,58081.0,0.00117977]
[1725498681268,0.75804394,58082.0,58081.0,0.06144277]
[1725498681479,0.75804394,58082.0,58081.0,0.57796277]
[1725498682576,0.88804394,58082.0,58081.0,0.57796277]
[1725498683581,0.75804394,58082.0,58081.0,0.57796277]
[1725498683970,0.75804394,58082.0,58081.0,0.0920269]
[1725498684164,0.028,58082.0,58081.0,1.2085469]
[1725498684369,0.00025816,58087.0,58086.0,0.060258]
[1725498684370,0.00898238,58087.0,58086.0,0.060258]
[1725498684581,0.00025816,58087.0,58086.0,0.846738]
[1725498684784,0.00025816,58087.0,58086.0,1.446738]
[1725498684978,0.00025816,58087.0,58086.0,1.901838]
[1725498685884,0.00925816,58087.0,58086.0,1.901838]
[1725498686783,0.02225816,58087.0,58086.0,1.902838]
[1725498687476,0.01525816,58087.0,58086.0,1.902838]
[1725498687780,0.01525816,58087.0,58086.0,2.372738]
[1725498688075,0.02125816,58087.0,58086.0,2.373738]
[1725498688477,0.02125816,58087.0,58086.0,2.372738]
[1725498688478,0.00625816,58087.0,58086.0,2.372738]
[1725498688681,0.00925816,58087.0,58086.0,2.372738]
[1725498689981,0.00925816,58087.0,58086.0,1.256258]
[1725498690288,0.00925816,58087.0,58086.0,1.772738]
[1725498691391,0.00925816,58087.0,58086.0,2.372738]
[1725498691988,0.00925816,58087.0,58086.0,1.772738]
[1725498692487,0.00925816,58087.0,58086.0,2.372738]
[1725498693292,0.00925816,58087.0,58086.0,1.256258]
[1725498693588,0.00925816,58087.0,58086.0,2.372738]
[1725498694590,0.00925816,58087.0,58086.0,1.772738]
[1725498696289,0.00925816,58087.0,58086.0,2.372738]
[1725498697792,0.00925816,58087.0,58086.0,1.256258]
[1725498698980,0.00925816,58087.0,58086.0,0.801158]
[1725498699185,0.00925816,58087.0,58086.0,0.331258]
[1725498700881,0.00925816,58087.0,58086.0,0.061258]
[1725498701493,0.11925816,58087.0,58086.0,0.001]
[1725498702092,0.55755816,58087.0,58086.0,0.001]
[1725498702597,1.00035816,58087.0,58086.0,0.001]
[1725498702784,0.56755816,58087.0,58086.0,0.271]
[1725498705501,0.12925816,58087.0,58086.0,0.847738]
[1725498705684,0.12925816,58087.0,58086.0,1.447738]
[1725498708394,0.12925816,58087.0,58086.0,1.915038]
[1725498711895,0.12325816,58087.0,58086.0,1.914038]
[1725498712095,0.12625816,58087.0,58086.0,1.914038]
[1725498712803,0.12925816,58087.0,58086.0,1.915038]
[1725498715602,0.12925816,58087.0,58086.0,1.447738]
[1725498716103,0.12925816,58087.0,58086.0,0.331258]
[1725498717608,0.12925816,58087.0,58086.0,1.447738]
[1725498718502,0.12925816,58087.0,58086.0,0.847738]
[1725498720801,0.12925816,58087.0,58086.0,0.331258]
[1725498727904,0.12925816,58087.0,58086.0,0.171258]
[1725498731317,0.12925816,58087.0,58086.0,0.001]
[1725498740220,0.49005816,58087.0,58086.0,0.001]
[1725498745413,1.93679516,58087.0,58081.0,0.00117977]
[1725498745622,0.6308,58082.0,58081.0,0.00117977]
[1725498745822,0.7408,58082.0,58081.0,0.00117977]
[1725498746624,0.4708,58082.0,58081.0,0.00117977]
[1725498747018,0.4708,58082.0,58081.0,0.00317977]
[1725498748430,0.4718,58082.0,58081.0,0.00317977]
[1725498751829,0.9131,58082.0,58081.0,0.00317977]
[1725498757131,0.4718,58082.0,58081.0,0.33344277]
[1725498757332,0.3618,58082.0,58081.0,0.33344277]
[1725498757526,0.001,58082.0,58081.0,0.77624277]
[1725498757941,0.001,58082.0,58081.0,0.61624277]
[1725498760451,0.00025816,58087.0,58086.0,0.060258]
[1725498760641,0.00025816,58087.0,58086.0,0.170258]
[1725498761735,0.00925816,58087.0,58086.0,0.171258]
[1725498763235,0.00925816,58087.0,58086.0,0.532058]
[1725498765756,0.00925816,58087.0,58086.0,0.56318689]
[1725498770752,0.05925816,58087.0,58086.0,0.56318689]
[1725498772758,0.00925816,58087.0,58086.0,0.56318689]
[1725498787671,0.00925816,58087.0,58086.0,0.39292889]
[1725498787877,0.00925816,58087.0,58081.0,0.00117977]
[1725498787878,1.66653816,58087.0,58081.0,0.00117977]
[1725498788079,0.4708,58082.0,58081.0,0.00117977]
[1725498788373,0.5808,58082.0,58081.0,0.00117977]
[1725498790377,0.5808,58082.0,58081.0,0.00317977]
[1725498790983,0.5818,58082.0,58081.0,0.00317977]
[1725498797688,0.4718,58082.0,58081.0,0.00317977]
[1725498797889,0.5818,58082.0,58081.0,0.00317977]
[1725498808390,1.09832,58082.0,58081.0,0.00317977]
[1725498810993,0.5818,58082.0,58081.0,0.00317977]
[1725498815709,0.5818,58082.0,58081.0,0.17344277]
[1725498815710,0.4718,58082.0,58081.0,0.17344277]
[1725498816003,0.4718,58082.0,58081.0,1.51284277]
[1725498816004,0.111,58082.0,58081.0,1.51284277]
[1725498816497,0.001,58082.0,58081.0,1.51284277]
[1725498818199,0.36105816,58087.0,58086.0,0.060258]
[1725498818200,0.00025816,58087.0,58086.0,0.060258]
[1725498818400,0.00025816,58087.0,58086.0,0.170258]
[1725498818902,0.05025816,58087.0,58086.0,0.170258]
[1725498819500,0.05925816,58087.0,58086.0,0.171258]
[1725498820103,0.42005816,58087.0,58086.0,0.171258]
[1725498820300,0.42005816,58087.0,58086.0,0.20161659]
[1725498820994,0.42005816,58087.0,58086.0,0.03135859]
[1725498821407,0.42005816,58087.0,58086.0,0.001]
[1725498821710,0.87595816,58087.0,58086.0,0.001]
[1725498822911,0.88449624,58087.0,58086.0,0.001]
[1725498831911,0.52369624,58087.0,58086.0,0.001]
[1725498832115,0.88449624,58087.0,58086.0,0.001]
[1725498832321,0.52369624,58087.0,58086.0,0.001]
[1725498832617,0.91483042,58087.0,58086.0,0.001]
[1725498835519,1.02483042,58087.0,58086.0,0.001]
[1725498836118,0.99449624,58087.0,58086.0,0.001]
[1725498838116,0.98595816,58087.0,58086.0,0.001]
[1725498838615,0.994569,58087.0,58086.0,0.001]
[1725498842012,0.884569,58087.0,58086.0,0.001]
[1725498843029,0.428669,58087.0,58086.0,0.111]
[1725498844127,0.428669,58087.0,58086.0,0.001]
[1725498845330,0.428669,58087.0,58081.0,0.00117977]
[1725498845331,0.060259,58086.0,58081.0,0.00117977]
[1725498845528,0.4708,58082.0,58081.0,0.00117977]
[1725498845729,0.5808,58082.0,58081.0,0.00117977]
[1725498846722,0.5808,58082.0,58081.0,0.00317977]
[1725498848429,0.4718,58082.0,58081.0,0.00317977]
[1725498862129,0.5818,58082.0,58081.0,0.00317977]
[1725498865341,0.4718,58082.0,58081.0,0.00317977]
[1725498867437,0.111,58082.0,58081.0,0.06344277]
[1725498870551,0.00025816,58087.0,58086.0,0.060258]
[1725498870745,0.00025816,58087.0,58086.0,0.170258]
[1725498871640,0.00625816,58087.0,58086.0,0.171258]
[1725498871851,0.00925816,58087.0,58086.0,0.171258]
[1725498877639,0.00925816,58087.0,58086.0,0.20291508]
[1725498879853,0.00925816,58087.0,58086.0,0.09291508]
[1725498880064,0.47905816,58087.0,58086.0,0.09291508]
[1725498882158,0.83985816,58087.0,58086.0,0.09291508]
[1725498882950,0.83985816,58087.0,58086.0,0.20291508]
[1725498884059,0.83985816,58087.0,58086.0,0.03265708]
[1725498884256,0.90985816,58087.0,58086.0,0.001]
[1725498884966,2.05789587,58087.0,58086.0,0.001]
[1725498885152,2.05789587,58087.0,58081.0,0.00117977]
[1725498885153,0.06026,58084.0,58081.0,0.00117977]
[1725498885456,0.4708,58082.0,58081.0,0.00117977]
[1725498885662,0.5808,58082.0,58081.0,0.00117977]
[1725498888060,0.5808,58082.0,58081.0,0.00317977]
[1725498888550,0.5818,58082.0,58081.0,0.00117977]
[1725498888754,1.758582,58082.0,58081.0,0.00317977]
[1725498895147,1.768582,58082.0,58081.0,0.00217977]
[1725498895347,1.776582,58082.0,58081.0,0.00317977]
[1725498895551,0.060263,58081.0,58080.0,0.00874059]
[1725498895761,0.060265,58079.0,58071.0,0.03459058]
[1725498895958,0.4708,58074.0,58071.0,0.03059058]
[1725498896155,0.5908,58074.0,58071.0,0.03059058]
[1725498896353,1.7074,58074.0,58071.0,0.03059058]
[1725498896653,1.7074,58074.0,58064.0,0.00748645]
[1725498896859,1.76767,58074.0,58068.0,0.00025816]
[1725498898153,1.78667,58074.0,58073.0,0.00352965]
[1725498898564,1.18667,58074.0,58073.0,0.00352965]
[1725498900063,0.67007,58074.0,58073.0,0.00352965]
[1725498901365,0.70064188,58074.0,58073.0,0.00352965]
[1725498903365,0.3798,58074.0,58073.0,0.00352965]
[1725498903673,0.4898,58074.0,58073.0,0.00352965]
[1725498904191,0.6098,58074.0,58073.0,0.00352965]
[1725498907661,0.4998,58074.0,58073.0,0.00352965]
[1725498907959,0.4998,58074.0,58073.0,0.11352965]
[1725498908565,0.4998,58074.0,58073.0,0.00352965]
[1725498909170,0.6098,58074.0,58073.0,0.00352965]
[1725498915262,0.67007,58074.0,58073.0,0.00352965]
[1725498916269,0.67007,58074.0,58059.0,0.00366532]
[1725498916270,0.06028,58065.0,58059.0,0.00366532]
[1725498916470,0.06028,58065.0,58064.0,0.00114463]
[1725498916471,0.64108,58065.0,58064.0,0.00114463]
[1725498917077,0.64957923,58065.0,58064.0,0.00114463]
[1725498917482,0.65057923,58065.0,58064.0,0.00114463]
[1725498917779,0.65857923,58065.0,58064.0,0.00214463]
[1725498918078,0.81757923,58065.0,58064.0,0.00214463]
[1725498918288,0.82857923,58065.0,58064.0,0.00314463]
[1725498918777,1.93676,58065.0,58056.0,0.00284708]
[1725498918980,0.691088,58057.0,58056.0,0.00284708]
[1725498919275,0.801088,58057.0,58056.0,0.00284708]
[1725498919679,0.7408,58057.0,58056.0,0.00284708]
[1725498920471,0.801088,58057.0,58056.0,0.00284708]
[1725498920673,0.060291,58054.0,58053.0,0.00038884]
[1725498920872,0.7408,58054.0,58047.0,0.00150294]
[1725498921078,0.691097,58048.0,58047.0,0.00150294]
[1725498921276,0.811097,58048.0,58047.0,0.00150294]
[1725498921584,1.927897,58048.0,58047.0,0.00150294]
[1725498922082,2.1121557,58048.0,58047.0,0.00150294]
[1725498922277,0.060303,58043.0,58041.0,0.00151859]
[1725498922488,1.0953,58042.0,58041.0,0.00151859]
[1725498922686,1.45618673,58042.0,58041.0,0.00151859]
[1725498923780,1.46418673,58042.0,58041.0,0.00151859]
[1725498924878,2.58806673,58042.0,58041.0,0.00151859]
[1725498925277,2.58806673,58042.0,58035.0,0.00689113]
[1725498925278,1.41088273,58042.0,58035.0,0.00689113]
[1725498925480,0.69111,58036.0,58035.0,0.00689113]
[1725498925685,0.69111,58036.0,58030.0,0.00071149]
[1725498925686,0.7408,58036.0,58030.0,0.00071149]
[1725498925986,0.6308,58032.0,58031.0,0.02799551]
[1725498926182,0.80972542,58032.0,58031.0,0.02799551]
[1725498926381,2.10841198,58032.0,58031.0,0.01999551]
[1725498926590,0.060317,58029.0,58028.0,0.00180489]
[1725498926782,0.80986555,58029.0,58028.0,0.00180489]
[1725498926975,2.11035788,58029.0,58028.0,0.00180489]
[1725498927390,0.060318,58028.0,58027.0,0.0263415]
[1725498927691,1.33372508,58028.0,58027.0,0.0263415]
[1725498927989,1.93372508,58028.0,58027.0,0.0263415]
[1725498928673,0.060319,58027.0,58026.0,0.01213503]
[1725498928878,1.133319,58027.0,58026.0,0.01213503]
[1725498929086,1.93118902,58027.0,58026.0,0.01213503]
[1725498930000,1.93918902,58027.0,58026.0,0.01213503]
[1725498930488,1.94918902,58027.0,58026.0,0.01213503]
[1725498930687,0.83218902,58027.0,58026.0,0.01213503]
[1725498932380,1.10218902,58027.0,58026.0,0.01213503]
[1725498932578,1.04187002,58027.0,58026.0,0.01213503]
[1725498932983,0.408,58027.0,58026.0,0.01213503]
[1725498934093,0.138,58027.0,58026.0,0.01213503]
[1725498934987,0.138,58027.0,58026.0,0.07245503]
[1725498935380,0.138,58027.0,58026.0,0.10378595]
[1725498935888,0.138,58027.0,58026.0,0.07245503]
[1725498936390,0.138,58027.0,58026.0,1.18945503]
[1725498936391,0.018,58027.0,58026.0,1.18945503]
[1725498936599,0.018,58027.0,58026.0,1.45945503]
[1725498937178,0.018,58027.0,58026.0,1.18945503]
[1725498937495,0.018,58027.0,58026.0,1.22108724]
[1725498941478,0.018,58027.0,58026.0,0.89108724]
[1725498942193,0.00025838,58032.0,58031.0,0.060315]
[1725498942400,0.13905247,58032.0,58031.0,0.060315]
[1725498942689,0.13025838,58032.0,58031.0,0.060315]
[1725498943487,0.14425838,58032.0,58031.0,0.060315]
[1725498944600,0.15725838,58032.0,58031.0,0.060315]
[1725498945085,0.14025838,58032.0,58031.0,0.060315]
[1725498945290,0.15225838,58032.0,58031.0,0.060315]
[1725498946306,0.02225838,58032.0,58031.0,1.177275]
[1725498946786,0.01025838,58032.0,58031.0,1.177275]
[1725498946988,0.02025838,58032.0,58031.0,1.178275]
[1725498947496,0.004,58040.0,58038.0,0.060308]
[1725498947793,0.3608,58047.0,58038.0,0.6308]
[1725498947997,0.3608,58047.0,58046.0,0.0603]
[1725498948189,0.3608,58047.0,58046.0,0.6603]
[1725498948389,0.004,58054.0,58051.0,0.060294]
[1725498948587,0.0085756,58055.0,58051.0,0.27]
[1725498948793,0.0085756,58055.0,58054.0,0.27]
[1725498949395,0.0085756,58055.0,58054.0,1.893451]
[1725498949601,0.00025838,58057.0,58056.0,0.060289]
[1725498949899,0.00025838,58057.0,58056.0,0.660289]
[1725498950096,0.00025838,58057.0,58056.0,1.177009]
[1725498950484,0.004,58062.0,58061.0,0.060284]
[1725498950782,0.004,58071.0,58061.0,0.6308]
[1725498950985,0.3608,58072.0,58061.0,0.6308]
[1725498950986,0.3608,58069.0,58068.0,0.27]
[1725498951396,0.3608,58069.0,58068.0,0.78664]
[1725498951593,0.3608,58069.0,58068.0,1.21284]
[1725498952094,0.3608,58069.0,58068.0,0.4262]
[1725498952687,0.3708,58069.0,58068.0,0.4272]
[1725498952883,0.3828,58069.0,58068.0,0.4282]
[1725498953386,0.3828,58069.0,58068.0,0.45987702]
[1725498953788,0.3828,58069.0,58068.0,0.002]
[1725498953984,0.5128,58069.0,58068.0,0.002]